fUSD/lending_fUSD_20250828
["ID","MTS","AMOUNT","RATE_DAILY","PERIOD"]
[381821029,1756359060058,-400.0,0.0001882,2]
[381821030,1756359060068,-400.0,0.0001882,2]
[381821031,1756359060077,-400.0,0.0001882,2]
[381821032,1756359060086,-400.0,0.0001882,2]
[381821033,1756359060096,-400.0,0.0001882,2]
[381821034,1756359060106,-150.48434281,0.0001882,2]
[381821035,1756359060115,-496.76,0.0001882,2]
[381821036,1756359060124,-400.0,0.0001882,2]
[381821037,1756359060134,-400.0,0.0001882,2]
[381821038,1756359060143,-400.0,0.0001882,2]
[381821039,1756359060152,-400.0,0.0001882,2]
[381821040,1756359060162,-400.0,0.0001882,2]
[381821041,1756359060171,-400.0,0.0001882,2]
[381821042,1756359060180,-476.33,0.0001882,2]
[381821043,1756359060190,-400.0,0.0001882,2]
[381821044,1756359060200,-400.0,0.0001882,2]
[381821045,1756359060209,-400.0,0.0001882,2]
[381821046,1756359060218,-400.0,0.0001882,2]
[381821047,1756359060228,-400.0,0.0001882,2]
[381821048,1756359060238,-400.0,0.0001882,2]
[381821049,1756359060248,-400.0,0.0001882,2]
[381821050,1756359060258,-400.0,0.0001882,2]
[381821051,1756359060268,-400.0,0.0001882,2]
[381821052,1756359060278,-258.36640573,0.0001882,2]
[381821053,1756359060287,-400.0,0.0001882,2]
[381821054,1756359060298,-430.96809461,0.0001882,2]
[381821055,1756359060307,-400.0,0.0001882,2]
[381821056,1756359060316,-225.86846832,0.0001882,2]
[381821057,1756359060325,-1717.97,0.0001882,2]
[381821058,1756359060335,-400.0,0.0001882,2]
[381821059,1756359060344,-400.0,0.0001882,2]
[381821060,1756359060353,-400.0,0.0001882,2]
[381821061,1756359060363,-400.0,0.0001882,2]
[381821062,1756359060372,-400.0,0.0001882,2]
[381821063,1756359060382,-400.0,0.0001882,2]
[381821064,1756359060391,-400.0,0.0001882,2]
[381821065,1756359060400,-257.61163292,0.0001882,2]
[381821066,1756359060411,-400.0,0.0001882,2]
[381821067,1756359060419,-400.0,0.0001882,2]
[381821068,1756359060427,-400.0,0.0001882,2]
[381821069,1756359060436,-400.0,0.0001882,2]
[381821070,1756359060446,-400.0,0.0001882,2]
[381821071,1756359060456,-400.0,0.0001882,2]
[381821072,1756359060466,-400.0,0.0001882,2]
[381821073,1756359060475,-400.0,0.0001882,2]
[381821074,1756359060484,-400.0,0.0001882,2]
[381821075,1756359060494,-400.0,0.0001882,2]
[381821076,1756359060503,-400.0,0.0001882,2]
[381821077,1756359060512,-400.0,0.0001882,2]
[381821078,1756359060522,-400.0,0.0001882,2]
[381821079,1756359060531,-400.0,0.0001882,2]
[381821080,1756359060543,-400.0,0.0001882,2]
[381821081,1756359060553,-400.0,0.0001882,2]
[381821082,1756359060563,-400.0,0.0001882,2]
[381821083,1756359060573,-400.0,0.0001882,2]
[381821084,1756359060582,-1453.82,0.0001882,2]
[381821085,1756359060593,-400.77937094,0.0001882,2]
[381821086,1756359060603,-400.0,0.0001882,2]
[381821087,1756359060612,-400.0,0.0001882,2]
[381821088,1756359060622,-400.0,0.0001882,2]
[381821089,1756359060632,-400.0,0.0001882,2]
[381821090,1756359060642,-400.0,0.0001882,2]
[381821091,1756359060652,-400.0,0.0001882,2]
[381821092,1756359060662,-400.0,0.0001882,2]
[381821093,1756359060671,-400.0,0.0001882,2]
[381821094,1756359060682,-400.0,0.0001882,2]
[381821095,1756359060692,-400.0,0.0001882,2]
[381821096,1756359060702,-400.0,0.0001882,2]
[381821097,1756359060711,-401.1,0.0001882,2]
[381821098,1756359060721,-400.0,0.0001882,2]
[381821099,1756359060730,-400.0,0.0001882,2]
[381821100,1756359060740,-400.0,0.0001882,2]
[381821101,1756359060749,-400.0,0.0001882,2]
[381821102,1756359060758,-400.0,0.0001882,2]
[381821103,1756359060768,-400.0,0.0001882,2]
[381821104,1756359060778,-400.0,0.0001882,2]
[381821105,1756359060787,-554.12,0.0001882,2]
[381821106,1756359060797,-400.0,0.0001882,2]
[381821107,1756359060807,-400.0,0.0001882,2]
[381821108,1756359060817,-400.0,0.0001882,2]
[381821109,1756359060826,-400.0,0.0001882,2]
[381821110,1756359060836,-400.0,0.0001882,2]
[381821111,1756359060845,-507.80565615,0.0001882,2]
[381821112,1756359060855,-400.0,0.0001882,2]
[381821113,1756359060865,-400.0,0.0001882,2]
[381821114,1756359060875,-400.0,0.0001882,2]
[381821115,1756359060885,-400.0,0.0001882,2]
[381821116,1756359060894,-387.7822134,0.0001882,2]
[381821117,1756359060906,-400.0,0.0001882,2]
[381821118,1756359060915,-400.0,0.0001882,2]
[381821119,1756359060925,-400.0,0.0001882,2]
[381821120,1756359060935,-400.0,0.0001882,2]
[381821121,1756359060945,-425.03,0.0001882,2]
[381821122,1756359060955,-607.2,0.0001882,2]
[381821123,1756359060964,-408.84,0.0001882,2]
[381821124,1756359060974,-442.57,0.0001882,2]
[381821125,1756359060988,-400.0,0.0001882,2]
[381821126,1756359060997,-400.0,0.0001882,2]
[381821127,1756359061006,-400.0,0.0001882,2]
[381821128,1756359061016,-1048.72,0.0001882,2]
[381821129,1756359061026,-400.0,0.0001882,2]
[381821130,1756359061036,-400.0,0.0001882,2]
[381821131,1756359061046,-425.7,0.0001882,2]
[381821132,1756359061057,-856.33,0.0001882,2]
[381821133,1756359061067,-440.3,0.0001882,2]
[381821134,1756359061076,-172.29062971,0.0001882,2]
[381821135,1756359061085,-615.0,0.0001882,2]
[381821136,1756359061095,-400.0,0.0001882,2]
[381821137,1756359061104,-400.0,0.0001882,2]
[381821138,1756359061113,-400.0,0.0001882,2]
[381821139,1756359061122,-400.0,0.0001882,2]
[381821140,1756359061131,-400.0,0.0001882,2]
[381821141,1756359061140,-400.0,0.0001882,2]
[381821142,1756359061150,-400.0,0.0001882,2]
[381821143,1756359061162,-400.0,0.0001882,2]
[381821144,1756359061171,-400.0,0.0001882,2]
[381821145,1756359061180,-400.0,0.0001882,2]
[381821146,1756359061190,-400.0,0.0001882,2]
[381821147,1756359061200,-400.0,0.0001882,2]
[381821148,1756359061210,-400.0,0.0001882,2]
[381821149,1756359061219,-409.55,0.0001882,2]
[381821150,1756359061228,-554.38,0.0001882,2]
[381821151,1756359061238,-466.59,0.0001882,2]
[381821152,1756359061249,-400.0,0.0001882,2]
[381821153,1756359061258,-400.0,0.0001882,2]
[381821154,1756359061267,-400.0,0.0001882,2]
[381821155,1756359061278,-440.02,0.0001882,2]
[381821156,1756359061288,-400.0,0.0001882,2]
[381821157,1756359061297,-400.0,0.0001882,2]
[381821158,1756359061307,-521.83,0.0001882,2]
[381821159,1756359061316,-584.93,0.0001882,2]
[381821160,1756359061326,-400.0,0.0001882,2]
[381821161,1756359061336,-1318.25,0.0001882,2]
[381821162,1756359061346,-400.0,0.0001882,2]
[381821163,1756359061355,-512.81,0.0001882,2]
[381821164,1756359061365,-691.02,0.0001882,2]
[381821165,1756359061374,-503.1706499,0.00018821,2]
[381821166,1756359061384,-1000.0,0.00018821,2]
[381821167,1756359061394,-1000.0,0.00018821,2]
[381821168,1756359061406,-1001.50088441,0.00018821,2]
[381821169,1756359061415,-1000.0,0.00018821,2]
[381821170,1756359061426,-1000.0,0.00018821,2]
[381821171,1756359061435,-1000.0,0.00018821,2]
[381821172,1756359061444,-400.0,0.00018821,2]
[381821173,1756359061454,-400.0,0.00018821,2]
[381821174,1756359061463,-400.0,0.00018821,2]
[381821175,1756359061473,-400.0,0.00018821,2]
[381821176,1756359061482,-345.02,0.00018821,2]
[381821177,1756359061491,-319.76,0.00018821,2]
[381821178,1756359061501,-400.0,0.00018821,2]
[381821179,1756359061511,-492.98906059,0.00018821,2]
[381821180,1756359061521,-400.0,0.00018821,2]
[381821181,1756359061530,-400.0,0.00018821,2]
[381821182,1756359061539,-400.0,0.00018821,2]
[381821183,1756359061549,-400.0,0.00018821,2]
[381821184,1756359061559,-400.0,0.00018821,2]
[381821185,1756359061568,-400.0,0.00018821,2]
[381821186,1756359061578,-545.81,0.00018821,2]
[381821187,1756359061587,-633.46,0.00018821,2]
[381821188,1756359061596,-400.0,0.00018821,2]
[381821189,1756359061606,-1042.04,0.00018821,2]
[381821190,1756359061616,-227.09,0.00018821,2]
[381821191,1756359061625,-400.0,0.00018821,2]
[381821192,1756359061635,-400.0,0.00018821,2]
[381821193,1756359061644,-400.0,0.00018821,2]
[381821194,1756359061655,-4735.76,0.00018821,2]
[381821195,1756359061664,-400.0,0.00018821,2]
[381821196,1756359061673,-2496.66,0.00018821,2]
[381821197,1756359061682,-400.0,0.00018821,2]
[381821198,1756359061692,-400.0,0.00018821,2]
[381821199,1756359061701,-400.0,0.00018821,2]
[381821200,1756359061711,-400.0,0.00018821,2]
[381821201,1756359061720,-210.54005115,0.00018821,2]
[381821202,1756359061729,-400.0,0.00018821,2]
[381821203,1756359061739,-400.0,0.00018821,2]
[381821204,1756359061748,-378.25,0.00018821,2]
[381821205,1756359061758,-225.5,0.00018821,2]
[381821206,1756359061768,-400.0,0.00018821,2]
[381821207,1756359061777,-449.52220815,0.00018821,2]
[381821208,1756359061786,-249.77,0.00018821,2]
[381821209,1756359061795,-400.0,0.00018821,2]
[381821210,1756359061805,-405.98,0.00018821,2]
[381821211,1756359061815,-419.34,0.00018821,2]
[381821212,1756359061824,-400.0,0.00018821,2]
[381821213,1756359061834,-400.0,0.00018821,2]
[381821214,1756359061843,-400.0,0.00018821,2]
[381821215,1756359061853,-413.6,0.00018821,2]
[381821216,1756359061863,-1748.86,0.00018821,2]
[381821217,1756359061873,-400.0,0.00018821,2]
[381821218,1756359061882,-400.0,0.00018821,2]
[381821219,1756359061891,-400.0,0.00018821,2]
[381821220,1756359061902,-400.0,0.00018821,2]
[381821221,1756359061913,-400.0,0.00018821,2]
[381821222,1756359061922,-400.0,0.00018821,2]
[381821223,1756359061932,-400.0,0.00018821,2]
[381821224,1756359061942,-400.0,0.00018821,2]
[381821225,1756359061952,-400.0,0.00018821,2]
[381821226,1756359061961,-400.0,0.00018821,2]
[381821227,1756359061972,-400.0,0.00018821,2]
[381821228,1756359061983,-303.19945479,0.00018821,2]
[381821229,1756359061997,-400.0,0.00018821,2]
[381821230,1756359062008,-1048.27,0.00018821,2]
[381821231,1756359062017,-400.0,0.00018821,2]
[381821232,1756359062028,-283.87907294,0.00018821,2]
[381821233,1756359062039,-370.98,0.00018821,2]
[381821234,1756359062048,-400.0,0.00018821,2]
[381821235,1756359062059,-400.0,0.00018821,2]
[381821236,1756359062069,-400.0,0.00018821,2]
[381821237,1756359062078,-1535.82,0.00018821,2]
[381821238,1756359062146,-400.0,0.00018821,2]
[381821239,1756359062157,-400.0,0.00018821,2]
[381821240,1756359062166,-400.0,0.00018821,2]
[381821241,1756359062175,-400.0,0.00018821,2]
[381821242,1756359062185,-400.0,0.00018821,2]
[381821243,1756359062195,-400.0,0.00018821,2]
[381821244,1756359062205,-400.0,0.00018821,2]
[381821245,1756359062215,-530.0,0.00018822,2]
[381821246,1756359062224,-162.66,0.00018831,2]
[381821247,1756359062233,-400.0,0.00018846,2]
[381821248,1756359062243,-331.75,0.00018849,2]
[381821249,1756359062253,-50230.62751575,0.0001885,2]
[381821250,1756359062263,-283495.09762532,0.0001886,2]
[381821251,1756359062273,-206.69523571,0.000189,2]
[381821252,1756359062283,-200.0,0.000189,6]
[381821253,1756359062293,-500.0,0.00018904,2]
[381821254,1756359062302,-791.0,0.00018936,2]
[381821255,1756359062312,-275.25933414,0.00018936,2]
[381821256,1756359062322,-150.0,0.00018936,2]
[381821257,1756359062331,-225.81333308,0.00018936,2]
[381821258,1756359062340,-400.0,0.00018993,2]
[381821259,1756359062349,-400.0,0.00018993,2]
[381821260,1756359062361,-670.01,0.00018993,2]
[381821261,1756359062371,-400.0,0.00018993,2]
[381821262,1756359062381,-150.724341,0.00018993,2]
[381821263,1756359062393,-237.375839,0.00018993,2]
[381821264,1756359062402,-468.69929,0.00018993,2]
[381821265,1756359062412,-551.72,0.00018993,2]
[381821266,1756359062421,-400.0,0.00018994,2]
[381821267,1756359062430,-534.42,0.00018994,2]
[381821268,1756359062439,-400.0,0.00018994,2]
[381821269,1756359062448,-400.0,0.00018994,2]
[381821270,1756359062457,-447.19,0.00018994,2]
[381821271,1756359062466,-1313.8,0.00018994,2]
[381821272,1756359062475,-400.0,0.00018994,2]
[381821273,1756359062484,-400.0,0.00018994,2]
[381821274,1756359062493,-400.0,0.00018994,2]
[381821275,1756359062502,-400.0,0.00018994,2]
[381821276,1756359062512,-400.0,0.00018994,2]
[381821277,1756359062522,-400.0,0.00018995,2]
[381821278,1756359062531,-400.0,0.00018995,2]
[381821279,1756359062540,-400.0,0.00018995,2]
[381821280,1756359062549,-437.31,0.00018995,2]
[381821281,1756359062559,-2467.82839895,0.00019,2]
[381821282,1756359062570,-154568.60434745,0.00019,2]
[381821283,1756359062579,-1012.08554564,0.00019068,2]
[381821284,1756359062588,-1500.0,0.00019068,2]
[381821285,1756359062597,-1500.0,0.00019068,2]
[381821286,1756359062607,-855.1038979,0.00019068,2]
[381821287,1756359062615,-168.0,0.00019083,2]
[381821288,1756359062625,-1500.0,0.00019093,2]
[381821289,1756359062635,-346.78978367,0.00019094,2]
[381821290,1756359062646,-400.0,0.00019094,2]
[381821291,1756359062656,-400.0,0.00019094,2]
[381821292,1756359062665,-250.41994313,0.00019094,2]
[381821293,1756359062675,-399.50922673,0.00019094,2]
[381821294,1756359062684,-400.0,0.00019094,2]
[381821295,1756359062693,-400.0,0.00019094,2]
[381821296,1756359062702,-400.0,0.00019094,2]
[381821297,1756359062712,-400.0,0.00019094,2]
[381821298,1756359062721,-331.55322097,0.00019094,2]
[381821299,1756359062730,-400.0,0.00019094,2]
[381821300,1756359062739,-400.0,0.00019094,2]
[381821301,1756359062748,-400.0,0.00019094,2]
[381821302,1756359062757,-400.0,0.00019094,2]
[381821303,1756359062766,-400.0,0.00019094,2]
[381821304,1756359062775,-400.0,0.00019094,2]
[381821305,1756359062784,-400.0,0.00019094,2]
[381821306,1756359062792,-400.0,0.00019094,2]
[381821307,1756359062802,-400.0,0.00019094,2]
[381821308,1756359062811,-154.57134845,0.00019094,2]
[381821309,1756359062820,-400.0,0.00019094,2]
[381821310,1756359062829,-400.0,0.00019094,2]
[381821311,1756359062838,-400.0,0.00019094,2]
[381821312,1756359062847,-476.33,0.00019094,2]
[381821313,1756359062856,-400.0,0.00019094,2]
[381821314,1756359062865,-400.0,0.00019094,2]
[381821315,1756359062875,-400.0,0.00019094,2]
[381821316,1756359062884,-400.0,0.00019094,2]
[381821317,1756359062895,-400.0,0.00019094,2]
[381821318,1756359062905,-400.0,0.00019094,2]
[381821319,1756359062914,-400.0,0.00019094,2]
[381821320,1756359062923,-400.0,0.00019094,2]
[381821321,1756359062934,-400.0,0.00019094,2]
[381821322,1756359062944,-400.0,0.00019094,2]
[381821323,1756359062954,-400.0,0.00019094,2]
[381821324,1756359062963,-1717.97,0.00019094,2]
[381821325,1756359062972,-400.0,0.00019094,2]
[381821326,1756359062984,-400.0,0.00019094,2]
[381821327,1756359062995,-400.0,0.00019094,2]
[381821328,1756359063004,-400.0,0.00019094,2]
[381821329,1756359063013,-400.0,0.00019094,2]
[381821330,1756359063023,-400.0,0.00019094,2]
[381821331,1756359063032,-400.0,0.00019094,2]
[381821332,1756359063041,-251.58840456,0.00019094,2]
[381821333,1756359063051,-400.0,0.00019094,2]
[381821334,1756359063062,-400.0,0.00019094,2]
[381821335,1756359063071,-400.0,0.00019094,2]
[381821336,1756359063080,-400.0,0.00019094,2]
[381821337,1756359063090,-400.0,0.00019094,2]
[381821338,1756359063099,-400.0,0.00019094,2]
[381821339,1756359063109,-400.0,0.00019094,2]
[381821340,1756359063118,-261.59488195,0.00019094,2]
[381821341,1756359063128,-400.0,0.00019094,2]
[381821342,1756359063137,-400.0,0.00019094,2]
[381821343,1756359063147,-501.47906784,0.00019094,2]
[381821344,1756359063157,-400.0,0.00019094,2]
[381821345,1756359063166,-400.0,0.00019094,2]
[381821346,1756359063175,-400.0,0.00019094,2]
[381821347,1756359063186,-269.62836603,0.00019094,2]
[381821348,1756359063196,-400.0,0.00019094,2]
[381821349,1756359063205,-400.0,0.00019094,2]
[381821350,1756359063215,-1453.82,0.00019094,2]
[381821351,1756359063225,-400.0,0.00019094,2]
[381821352,1756359063234,-400.0,0.00019094,2]
[381821353,1756359063243,-400.0,0.00019094,2]
[381821354,1756359063252,-400.0,0.00019094,2]
[381821355,1756359063262,-400.0,0.00019094,2]
[381821356,1756359063271,-400.0,0.00019094,2]
[381821357,1756359063280,-400.0,0.00019094,2]
[381821358,1756359063289,-400.0,0.00019094,2]
[381821359,1756359063299,-400.0,0.00019094,2]
[381821360,1756359063308,-400.0,0.00019094,2]
[381821361,1756359063317,-400.0,0.00019094,2]
[381821362,1756359063327,-400.0,0.00019094,2]
[381821363,1756359063337,-401.1,0.00019094,2]
[381821364,1756359063346,-435.73862624,0.00019094,2]
[381821365,1756359063355,-400.0,0.00019094,2]
[381821366,1756359063365,-400.0,0.00019094,2]
[381821367,1756359063374,-400.0,0.00019094,2]
[381821368,1756359063384,-400.0,0.00019094,2]
[381821369,1756359063393,-400.0,0.00019094,2]
[381821370,1756359063402,-554.12,0.00019094,2]
[381821371,1756359063412,-400.0,0.00019094,2]
[381821372,1756359063421,-239.87091037,0.00019094,2]
[381821373,1756359063432,-400.0,0.00019094,2]
[381821374,1756359063442,-400.0,0.00019094,2]
[381821375,1756359063451,-400.0,0.00019094,2]
[381821376,1756359063460,-400.0,0.00019094,2]
[381821377,1756359063469,-400.0,0.00019094,2]
[381821378,1756359063478,-400.0,0.00019094,2]
[381821379,1756359063488,-400.0,0.00019094,2]
[381821380,1756359063497,-400.0,0.00019094,2]
[381821381,1756359063507,-400.0,0.00019094,2]
[381821382,1756359063516,-400.0,0.00019094,2]
[381821383,1756359063526,-400.0,0.00019094,2]
[381821384,1756359063536,-425.03,0.00019094,2]
[381821385,1756359063546,-607.2,0.00019094,2]
[381821386,1756359063555,-408.84,0.00019094,2]
[381821387,1756359063564,-442.57,0.00019094,2]
[381821388,1756359063574,-400.0,0.00019094,2]
[381821389,1756359063583,-400.0,0.00019094,2]
[381821390,1756359063593,-400.0,0.00019094,2]
[381821391,1756359063602,-1048.72,0.00019094,2]
[381821392,1756359063612,-400.0,0.00019094,2]
[381821393,1756359063621,-400.0,0.00019094,2]
[381821394,1756359063631,-425.7,0.00019094,2]
[381821395,1756359063640,-856.33,0.00019094,2]
[381821396,1756359063649,-440.3,0.00019094,2]
[381821397,1756359063658,-615.0,0.00019094,2]
[381821398,1756359063667,-400.0,0.00019094,2]
[381821399,1756359063676,-400.0,0.00019094,2]
[381821400,1756359063685,-188.15704599,0.00019094,2]
[381821401,1756359063694,-400.0,0.00019094,2]
[381821402,1756359063703,-400.0,0.00019094,2]
[381821403,1756359063712,-400.0,0.00019094,2]
[381821404,1756359063722,-400.0,0.00019094,2]
[381821405,1756359063731,-400.0,0.00019094,2]
[381821406,1756359063740,-400.0,0.00019094,2]
[381821407,1756359063750,-400.0,0.00019094,2]
[381821408,1756359063760,-400.0,0.00019094,2]
[381821409,1756359063769,-400.0,0.00019094,2]
[381821410,1756359063779,-237.6816639,0.00019094,2]
[381821411,1756359063788,-409.55,0.00019094,2]
[381821412,1756359063797,-554.38,0.00019094,2]
[381821413,1756359063807,-466.59,0.00019094,2]
[381821414,1756359063816,-400.0,0.00019094,2]
[381821415,1756359063827,-400.0,0.00019094,2]
[381821416,1756359063837,-400.0,0.00019094,2]
[381821417,1756359063847,-440.02,0.00019094,2]
[381821418,1756359063856,-400.0,0.00019094,2]
[381821419,1756359063865,-400.0,0.00019094,2]
[381821420,1756359063875,-584.93,0.00019094,2]
[381821421,1756359063885,-400.0,0.00019094,2]
[381821422,1756359063895,-1318.25,0.00019094,2]
[381821423,1756359063904,-400.0,0.00019094,2]
[381821424,1756359063915,-512.81,0.00019094,2]
[381821425,1756359063925,-691.02,0.00019094,2]
[381821426,1756359063934,-400.0,0.00019095,2]
[381821427,1756359063944,-400.0,0.00019095,2]
[381821428,1756359063953,-400.0,0.00019095,2]
[381821429,1756359063963,-400.0,0.00019095,2]
[381821430,1756359063972,-400.0,0.00019095,2]
[381821431,1756359063984,-400.0,0.00019095,2]
[381821432,1756359063994,-400.0,0.00019095,2]
[381821433,1756359064003,-400.0,0.00019095,2]
[381821434,1756359064014,-400.0,0.00019095,2]
[381821435,1756359064023,-400.0,0.00019095,2]
[381821436,1756359064032,-400.0,0.00019095,2]
[381821437,1756359064042,-545.81,0.00019095,2]
[381821438,1756359064051,-633.46,0.00019095,2]
[381821439,1756359064061,-400.0,0.00019095,2]
[381821440,1756359064071,-1042.04,0.00019095,2]
[381821441,1756359064080,-400.0,0.00019095,2]
[381821442,1756359064090,-400.0,0.00019095,2]
[381821443,1756359064099,-400.0,0.00019095,2]
[381821444,1756359064108,-4735.76,0.00019095,2]
[381821445,1756359064118,-400.0,0.00019095,2]
[381821446,1756359064127,-2496.66,0.00019095,2]
[381821447,1756359064138,-400.0,0.00019095,2]
[381821448,1756359064147,-409.0437749,0.00019095,2]
[381821449,1756359064157,-286.73055081,0.00019095,2]
[381821450,1756359064167,-400.0,0.00019095,2]
[381821451,1756359064176,-511.80996618,0.00019095,2]
[381821452,1756359064185,-400.0,0.00019095,2]
[381821453,1756359064194,-400.0,0.00019095,2]
[381821454,1756359064204,-514.50739871,0.00019095,2]
[381821455,1756359064213,-419.34,0.00019095,2]
[381821456,1756359064223,-400.0,0.00019095,2]
[381821457,1756359064232,-400.0,0.00019095,2]
[381821458,1756359064241,-400.0,0.00019095,2]
[381821459,1756359064251,-1748.86,0.00019095,2]
[381821460,1756359064260,-400.0,0.00019095,2]
[381821461,1756359064270,-400.0,0.00019095,2]
[381821462,1756359064279,-400.0,0.00019095,2]
[381821463,1756359064288,-400.0,0.00019095,2]
[381821464,1756359064297,-400.0,0.00019095,2]
[381821465,1756359064307,-223.73471351,0.00019095,2]
[381821466,1756359064317,-400.0,0.00019095,2]
[381821467,1756359064327,-502.02353358,0.00019095,2]
[381821468,1756359064336,-400.0,0.00019095,2]
[381821469,1756359064345,-400.0,0.00019095,2]
[381821470,1756359064355,-400.0,0.00019095,2]
[381821471,1756359064364,-400.0,0.00019095,2]
[381821472,1756359064373,-1048.27,0.00019095,2]
[381821473,1756359064383,-400.0,0.00019095,2]
[381821474,1756359064392,-400.0,0.00019095,2]
[381821475,1756359064401,-414.48,0.00019095,2]
[381821476,1756359064410,-400.0,0.00019095,2]
[381821477,1756359064420,-1535.82,0.00019095,2]
[381821478,1756359064429,-400.0,0.00019095,2]
[381821479,1756359064438,-400.0,0.00019095,2]
[381821480,1756359064447,-400.0,0.00019095,2]
[381821481,1756359064456,-400.0,0.00019095,2]
[381821482,1756359064465,-400.0,0.00019095,2]
[381821483,1756359064475,-400.0,0.00019095,2]
[381821484,1756359064484,-400.0,0.00019095,2]
[381821485,1756359064493,-400.0,0.0001912,2]
[381821486,1756359064503,-12240.48,0.00019151,2]
[381821487,1756359064512,-200.0,0.00019178,2]
[381821488,1756359064521,-151.0,0.00019178,2]
[381821489,1756359064531,-3328.6,0.00019178,2]
[381821490,1756359064541,-5000.0,0.00019178,2]
[381821491,1756359064551,-150.0,0.00019178,2]
[381821492,1756359064561,-791.0,0.0001921,2]
[381821493,1756359064571,-190.82,0.00019221,2]
[381821494,1756359064580,-400.0,0.00019267,2]
[381821495,1756359064589,-400.0,0.00019267,2]
[381821496,1756359064600,-670.01,0.00019267,2]
[381821497,1756359064609,-400.0,0.00019267,2]
[381821498,1756359064619,-150.724341,0.00019267,2]
[381821499,1756359064629,-237.375839,0.00019267,2]
[381821500,1756359064639,-468.69929,0.00019267,2]
[381821501,1756359064649,-551.72,0.00019267,2]
[381821502,1756359064657,-400.0,0.00019268,2]
[381821503,1756359064667,-534.42,0.00019268,2]
[381821504,1756359064676,-400.0,0.00019268,2]
[381821505,1756359064687,-400.0,0.00019268,2]
[381821506,1756359064697,-447.19,0.00019268,2]
[381821507,1756359064706,-1313.8,0.00019268,2]
[381821508,1756359064715,-400.0,0.00019268,2]
[381821509,1756359064724,-374.43406684,0.00019268,2]
[381821510,1756359064733,-400.0,0.00019268,2]
[381821511,1756359064743,-400.0,0.00019268,2]
[381821512,1756359064752,-400.0,0.00019268,2]
[381821513,1756359064762,-400.0,0.00019268,2]
[381821514,1756359064772,-245.26931474,0.00019269,2]
[381821515,1756359064782,-400.0,0.00019269,2]
[381821516,1756359064791,-400.0,0.00019269,2]
[381821517,1756359064801,-437.31,0.00019269,2]
[381821518,1756359064810,-1360.75689845,0.00019281,2]
[381821519,1756359064819,-161.0,0.000193,2]
[381821520,1756359064828,-1481.8253522,0.00019326,2]
[381821521,1756359064838,-152.0,0.00019339,2]
[381821522,1756359064847,-152.0,0.00019339,2]
[381821523,1756359064856,-152.0,0.00019339,2]
[381821524,1756359064866,-152.0,0.00019339,2]
[381821525,1756359064875,-152.0,0.00019339,2]
[381821526,1756359064884,-1221.0,0.00019339,2]
[381821527,1756359064893,-1221.0,0.00019339,2]
[381821528,1756359064903,-1221.0,0.00019339,2]